bitfinex/quotes_SOLUSD_20250611
["timestamp","ask_amount","ask_price","bid_price","bid_amount"]
[1749682084002,0.1965271,160.02,159.94,18.64964886]
[1749682084003,22.87955687,160.0,159.94,18.64964886]
[1749682084298,0.1965271,160.02,159.93,18.64964886]
[1749682084299,22.87955687,159.97,159.93,18.64964886]
[1749682084507,22.87955687,160.0,159.96,18.79181043]
[1749682084793,22.87955687,160.01,159.98,0.14216157]
[1749682085792,0.1965271,160.02,159.98,0.14216157]
[1749682085998,22.87955687,160.01,159.98,0.14216157]
[1749682087094,0.1965271,160.02,159.98,0.14216157]
[1749682087401,22.87955687,160.01,159.97,19.07613357]
[1749682089179,22.87955687,160.01,159.98,18.64964886]
[1749682089397,0.1965271,160.02,159.98,18.64964886]
[1749682089595,22.87955687,160.01,159.98,18.64964886]
[1749682090108,22.87955687,160.01,159.95,19.07613357]
[1749682090279,22.87955687,160.01,159.98,18.79181043]
[1749682090681,22.87955687,160.01,159.98,0.14216157]
[1749682093080,22.87955687,160.01,159.97,0.42648471]
[1749682093977,0.1965271,160.02,159.99,26.0]
[1749682094176,0.1965271,160.02,160.0,19.07613357]
[1749682094875,0.1965271,160.02,160.0,18.79181043]
[1749682096682,13.73893322,160.01,159.96,13.73893322]
[1749682096887,13.73893322,160.0,159.97,0.42648471]
[1749682097507,0.1965271,160.02,159.97,0.14216157]
[1749682097508,13.73893322,159.99,159.97,0.14216157]
[1749682097802,13.73893322,160.01,159.96,13.73893322]
[1749682097992,13.93546032,160.02,159.98,18.64964886]
[1749682098192,13.93546032,160.02,159.97,0.42648471]
[1749682098381,13.93546032,160.02,159.97,14.16541793]
[1749682100598,13.73893322,160.0,159.97,0.42648471]
[1749682100907,13.73893322,159.98,159.95,0.42648471]
[1749682101205,13.73893322,159.98,159.94,18.64964886]
[1749682101523,0.1965271,160.02,159.95,32.81506679]
[1749682101693,13.73893322,160.01,159.97,19.07613357]
[1749682101892,13.93546032,160.02,159.97,32.81506679]
[1749682102989,13.93546032,160.02,159.99,18.79181043]
[1749682102990,0.1965271,160.02,159.99,18.79181043]
[1749682103810,0.1965271,160.02,160.0,0.28432314]
[1749682104000,0.1965271,160.02,160.01,32.53074365]
[1749682104306,0.1965271,160.02,160.01,32.81506679]
[1749682110023,0.1965271,160.02,160.01,19.07613357]
[1749682110189,0.1965271,160.02,160.01,58.81506679]
[1749682112018,0.1965271,160.02,160.01,45.07613357]
[1749682112214,0.1965271,160.02,160.01,58.81506679]
[1749682115906,0.1965271,160.02,160.01,58.81506679]
[1749682117421,0.1965271,160.02,160.01,45.07613357]
[1749682117615,0.1965271,160.02,160.01,44.64964886]
[1749682117999,0.1965271,160.02,160.01,18.64964886]
[1749682118512,13.93546032,160.02,160.01,18.64964886]
[1749682119149,0.1965271,160.02,160.01,18.64964886]
[1749682119804,13.93546032,160.02,159.98,19.07613357]
[1749682120311,13.93546032,160.02,159.98,18.79181043]
[1749682120494,13.93546032,160.02,159.99,0.14216157]
[1749682121099,13.73893322,160.01,159.97,18.79181043]
[1749682121300,13.73893322,160.01,159.98,0.14216157]
[1749682121601,13.73893322,160.01,159.97,18.64964886]
[1749682121800,13.73893322,159.98,159.9,13.26079532]
[1749682122010,13.73893322,159.95,159.9,13.73893322]
[1749682122212,13.73893322,159.94,159.89,13.77893322]
[1749682122415,1.5244,159.98,159.91,13.73893322]
[1749682122614,13.73893322,159.97,159.93,18.64964886]
[1749682122793,13.73893322,159.97,159.93,0.14216157]
[1749682123006,15.26333322,159.98,159.93,14.16541793]
[1749682123219,13.73893322,160.01,159.97,18.64964886]
[1749682123734,39.93546032,160.02,159.97,32.38858208]
[1749682124040,0.1965271,160.02,159.98,13.88109479]
[1749682124208,0.1965271,160.02,159.99,18.64964886]
[1749682124413,13.93546032,160.02,159.98,0.14216157]
[1749682124831,13.73893322,160.01,159.98,0.14216157]
[1749682125336,13.73893322,160.01,159.97,18.933972]
[1749682125337,13.73893322,160.0,159.96,18.79181043]
[1749682127106,13.93546032,160.0,159.96,18.79181043]
[1749682127538,13.73893322,159.99,159.95,0.14216157]
[1749682128436,0.1965271,160.0,159.95,0.14216157]
[1749682128641,13.73893322,159.99,159.95,0.14216157]
[1749682128817,0.1965271,160.0,159.97,0.14216157]
[1749682129023,0.1965271,160.0,159.97,13.88109479]
[1749682129319,0.1965271,160.0,159.97,0.14216157]
[1749682131736,0.1965271,160.0,159.97,19.07613357]
[1749682132246,0.1965271,160.0,159.97,0.42648471]
[1749682132742,0.1965271,160.0,159.97,19.07613357]
[1749682134739,0.1965271,160.0,159.97,14.16541793]
[1749682135346,0.1965271,160.0,159.96,0.42648471]
[1749682135542,0.1965271,160.0,159.98,19.07613357]
[1749682136242,0.1965271,160.0,159.98,0.42648471]
[1749682137962,0.1965271,160.0,159.98,0.14216157]
[1749682138254,13.93546032,160.0,159.97,0.14216157]
[1749682138424,0.1965271,160.0,159.97,0.14216157]
[1749682138620,13.93546032,160.0,159.97,0.14216157]
[1749682139025,0.1965271,160.0,159.97,0.14216157]
[1749682139548,0.1965271,160.0,159.99,0.14216157]
[1749682139730,0.1965271,160.0,159.99,32.81506679]
[1749682140044,0.1965271,160.0,159.99,19.07613357]
[1749682140253,0.1965271,160.0,159.99,32.81506679]
[1749682146533,0.1965271,160.0,159.99,18.64964886]
[1749682147146,0.1965271,160.0,159.99,32.81506679]
[1749682147343,0.1965271,160.0,159.99,19.07613357]
[1749682147654,0.1965271,160.0,159.99,32.81506679]
[1749682152440,0.1965271,160.0,159.99,32.38858208]
[1749682152644,0.1965271,160.0,159.99,20.28564886]
[1749682152852,0.1965271,160.0,159.99,32.81506679]
[1749682153934,0.1965271,160.0,159.99,32.38858208]
[1749682154132,0.1965271,160.0,159.99,18.64964886]
[1749682154335,0.1965271,160.0,159.99,18.79181043]
[1749682154553,0.1965271,160.0,159.99,19.07613357]
[1749682154760,0.1965271,160.0,159.99,32.81506679]
[1749682157065,0.1965271,160.0,159.99,46.55400001]
[1749682158843,0.1965271,160.0,159.99,52.80439065]
[1749682159470,6.6345,160.11,160.04,18.64964886]
[1749682159670,6.6345,160.11,160.09,18.64964886]
[1749682160460,15.26593322,160.14,160.09,13.73893322]
[1749682160669,1.527,160.14,160.1,0.14216157]
[1749682160868,1.527,160.14,160.11,18.64964886]
[1749682161742,6.2239,160.15,160.13,18.64964886]
[1749682162354,7.5664,160.18,160.13,18.79181043]
[1749682162553,7.5664,160.18,160.13,32.53074365]
[1749682162554,21.30533322,160.18,160.13,32.53074365]
[1749682163261,30.42212722,160.18,160.14,18.64964886]
[1749682163456,7.5664,160.18,160.14,18.64964886]
[1749682163656,22.85572722,160.17,160.13,0.14216157]
[1749682163856,22.85572722,160.17,160.13,18.79181043]
[1749682164966,7.5664,160.18,160.13,18.79181043]
[1749682165174,22.85572722,160.17,160.13,18.79181043]
[1749682165674,30.42212722,160.18,160.14,18.64964886]
[1749682165871,22.85572722,160.17,160.14,18.64964886]
[1749682166463,22.85572722,160.17,160.13,18.79181043]
[1749682167068,7.5664,160.18,160.14,18.64964886]
[1749682167272,6.0432,160.18,160.14,41.50537608]
[1749682168187,6.0432,160.18,160.14,18.64964886]
[1749682168371,28.89892722,160.18,160.13,45.07613357]
[1749682168987,28.89892722,160.18,160.13,67.93186079]
[1749682170566,22.85572722,160.17,160.13,45.07613357]
[1749682170766,22.85572722,160.14,160.11,0.04]
[1749682170969,22.85572722,160.15,160.12,18.64964886]
[1749682171282,22.85572722,160.15,160.11,18.68964886]
[1749682171463,6.24266312,160.19,160.11,18.68964886]
[1749682171464,22.85572722,160.14,160.11,0.04]
[1749682171987,22.85572722,160.12,160.11,0.04]
[1749682172696,7.8213,160.15,160.11,0.04]
[1749682172697,22.85572722,160.13,160.11,0.04]
[1749682174690,7.8213,160.15,160.11,0.04]
[1749682174867,22.85572722,160.14,160.11,0.04]
[1749682175591,22.85572722,160.13,160.11,0.04]
[1749682175769,22.85572722,160.12,160.11,0.04]
[1749682179305,6.24475099,160.14,160.11,0.04]
[1749682179496,22.85572722,160.12,160.11,0.04]
[1749682180490,6.24460229,160.14,160.11,0.04]
[1749682180692,22.85572722,160.12,160.11,0.04]
[1749682181199,7.9783,160.11,159.98,18.65547688]
[1749682181494,22.85572722,160.1,160.03,18.64964886]
[1749682181792,22.85572722,160.06,160.03,18.64964886]
[1749682181997,7.9783,160.11,160.03,18.64964886]
[1749682182204,22.85572722,160.08,160.03,41.50537608]
[1749682182376,22.85572722,160.06,160.03,18.64964886]
[1749682183400,14.22401329,160.11,160.03,18.64964886]
[1749682183600,13.73321047,160.06,160.03,18.64964886]
[1749682184607,13.73321047,160.07,160.03,18.64964886]
[1749682186185,13.73321047,160.09,160.05,18.79181043]
[1749682186394,13.73321047,160.08,160.05,18.79181043]
[1749682187517,33.9783,160.11,160.05,13.87537204]
[1749682187815,13.73321047,160.09,160.05,13.87537204]
[1749682188176,13.73321047,160.1,160.05,13.87537204]
[1749682188503,13.73321047,160.1,160.05,32.5250209]
[1749682188682,13.73321047,160.11,160.07,13.73321047]
[1749682188882,156.8506,160.15,160.07,13.73321047]
[1749682189079,13.73321047,160.14,160.09,13.73321047]
[1749682189592,13.73321047,160.13,160.09,13.73321047]
[1749682189798,13.73321047,160.12,160.06,0.14216157]
[1749682189993,13.73321047,160.1,160.06,0.14216157]
[1749682190195,13.73321047,160.11,160.07,18.64964886]
[1749682190592,13.73321047,160.12,160.07,32.38285933]
[1749682191512,13.73321047,160.11,160.07,18.64964886]
[1749682193800,189.99478886,160.15,160.04,26.0]
[1749682193801,13.73321047,160.09,160.04,26.0]
[1749682194113,13.73321047,160.07,160.02,32.38285933]
[1749682194299,13.73321047,160.07,160.02,18.64964886]
[1749682194508,13.73321047,160.07,160.02,13.73321047]
[1749682194706,13.73321047,160.07,160.03,0.14216157]
[1749682197407,13.73321047,160.07,160.01,0.28432314]
[1749682197408,13.73321047,160.05,160.01,0.14216157]
[1749682197809,8.2495,160.09,160.02,18.64964886]
[1749682198111,13.73321047,160.06,160.02,18.64964886]
[1749682200617,13.73321047,160.08,160.04,18.64964886]
[1749682200820,13.73321047,160.08,160.04,18.79181043]
[1749682200999,6.6332,160.09,160.04,32.5250209]
[1749682201323,6.6332,160.09,160.02,0.28432314]
[1749682201324,13.73321047,160.12,160.08,18.64964886]
[1749682202124,19.98581047,160.13,160.08,32.38285933]
[1749682202315,6.24343588,160.17,160.08,32.38285933]
[1749682202316,13.73321047,160.14,160.1,13.73321047]
[1749682202619,7.9847,160.17,160.1,13.73321047]
[1749682202620,33.9847,160.17,160.1,13.73321047]
[1749682202807,13.73321047,160.14,160.1,13.73321047]
[1749682203333,7.9847,160.17,160.11,13.73321047]
[1749682203631,13.73321047,160.17,160.14,18.64964886]
[1749682204329,13.73321047,160.17,160.13,0.14216157]
[1749682205129,13.73321047,160.18,160.14,18.64964886]
[1749682205304,13.73321047,160.17,160.14,18.64964886]
[1749682205494,13.73321047,160.17,160.13,0.14216157]
[1749682205696,26.15,160.2,160.13,0.14216157]
[1749682205915,26.15,160.2,160.14,13.73321047]
[1749682205916,13.73321047,160.19,160.14,13.73321047]
[1749682206228,13.73321047,160.17,160.13,0.14216157]
[1749682206926,13.73321047,160.17,160.13,19.07613357]
[1749682207708,13.73321047,160.18,160.13,14.15969518]
[1749682208815,13.73321047,160.17,160.13,14.15969518]
[1749682209613,13.73321047,160.17,160.11,0.42648471]
[1749682209928,0.15,160.2,160.14,0.14216157]
[1749682210125,13.73321047,160.17,160.14,0.14216157]
[1749682210997,13.73321047,160.17,160.13,18.64964886]
[1749682213729,13.73321047,160.17,160.1,19.07613357]
[1749682213917,13.73321047,160.17,160.13,0.14216157]
[1749682214609,13.73321047,160.16,160.13,0.14216157]
[1749682215032,13.73321047,160.14,160.06,14.5828]
[1749682215234,26.0,160.17,160.07,18.64964886]
[1749682215412,26.0,160.18,160.07,18.64964886]
[1749682215413,13.73321047,160.11,160.08,0.14216157]
[1749682215732,13.73321047,160.12,160.08,0.42648471]
[1749682215914,13.73321047,160.11,160.07,58.38285933]
[1749682216113,13.73321047,160.11,160.08,0.42648471]
[1749682217033,13.73321047,160.16,160.08,0.42648471]
[1749682217236,13.73321047,160.15,160.11,0.14216157]
[1749682217735,26.0,160.18,160.11,0.14216157]
[1749682217933,13.73321047,160.14,160.11,0.14216157]
[1749682218342,13.73321047,160.15,160.11,0.14216157]
[1749682219333,26.0,160.17,160.11,0.14216157]
[1749682219514,13.73321047,160.15,160.11,0.14216157]
[1749682224931,26.0,160.18,160.11,0.14216157]
[1749682225133,13.73321047,160.15,160.11,0.14216157]
[1749682226051,13.73321047,160.16,160.12,18.64964886]
[1749682226832,13.73321047,160.15,160.11,18.79181043]
[1749682228241,13.73321047,160.15,160.09,0.42648471]
[1749682228452,13.73321047,160.15,160.11,19.07613357]
[1749682229453,26.15,160.2,160.11,32.80934404]
[1749682229655,13.73321047,160.16,160.11,0.42648471]
[1749682229859,13.73321047,160.16,160.11,14.15969518]
[1749682230151,13.73321047,160.15,160.08,18.64964886]
[1749682230335,32.39219999,160.2,160.09,14.01753361]
[1749682230336,13.73321047,160.14,160.09,14.01753361]
[1749682230958,32.39219999,160.2,160.09,14.01753361]
[1749682231245,13.73321047,160.14,160.1,18.79181043]
[1749682231459,13.73321047,160.15,160.11,0.14216157]
[1749682231631,13.73321047,160.17,160.13,18.64964886]
[1749682231832,13.73321047,160.16,160.13,18.64964886]
[1749682232450,0.15,160.2,160.13,13.87537204]
[1749682232652,0.15,160.2,160.12,32.38285933]
[1749682232851,13.73321047,160.17,160.12,32.38285933]
[1749682233152,13.73321047,160.15,160.12,18.64964886]
[1749682234459,0.15,160.2,160.13,0.14216157]
[1749682234644,13.73321047,160.18,160.13,13.87537204]
[1749682234836,13.73321047,160.17,160.13,0.14216157]
[1749682237253,0.15,160.2,160.13,13.87537204]
[1749682237450,13.73321047,160.18,160.13,13.87537204]
[1749682237649,0.15,160.2,160.16,18.64964886]
[1749682237867,0.15,160.2,160.18,18.64964886]
[1749682238864,0.15,160.2,160.18,13.73321047]
[1749682239067,0.15,160.2,160.19,32.5250209]
[1749682239642,0.15,160.2,160.19,32.80934404]
[1749682240144,0.15,160.2,160.19,19.07613357]
[1749682240361,0.15,160.2,160.19,18.79181043]
[1749682240662,13.88321047,160.2,160.15,18.64964886]
[1749682240858,13.73321047,160.18,160.15,18.64964886]
[1749682241065,13.73321047,160.18,160.15,0.14216157]
[1749682241645,13.73321047,160.18,160.14,18.64964886]
[1749682242072,13.73321047,160.18,160.15,0.14216157]
[1749682242250,13.73321047,160.18,160.14,18.64964886]
[1749682242457,13.73321047,160.19,160.15,0.14216157]
[1749682243546,0.15,160.2,160.15,0.14216157]
[1749682243762,13.73321047,160.19,160.15,0.14216157]
[1749682244566,13.73321047,160.18,160.15,0.14216157]
[1749682245082,0.15,160.2,160.15,0.14216157]
[1749682245284,13.73321047,160.18,160.15,0.14216157]
[1749682245653,0.15,160.2,160.15,0.14216157]
[1749682245869,13.73321047,160.17,160.15,0.14216157]
[1749682246383,0.15,160.2,160.15,0.14216157]
[1749682246764,13.73321047,160.17,160.15,0.14216157]
[1749682248099,13.73321047,160.16,160.15,0.14216157]
[1749682248375,13.73321047,160.17,160.15,0.14216157]
[1749682248591,13.73321047,160.18,160.15,0.14216157]
[1749682248964,13.88321047,160.2,160.15,14.15969518]
[1749682249286,0.15,160.2,160.18,0.14216157]
[1749682249453,13.88321047,160.2,160.18,0.14216157]
[1749682249779,13.88321047,160.2,160.16,0.42648471]
[1749682251069,0.15,160.2,160.16,0.42648471]
[1749682251270,13.73321047,160.19,160.15,0.14216157]
[1749682251468,13.73321047,160.16,160.14,18.64964886]
[1749682252457,13.73321047,160.16,160.12,18.64964886]
[1749682252659,0.15,160.2,160.12,18.64964886]
[1749682252878,13.73321047,160.16,160.13,0.14216157]
[1749682253671,1.6188,160.19,160.13,0.14216157]
[1749682253972,13.73321047,160.15,160.13,0.14216157]
[1749682254492,13.73321047,160.16,160.13,0.14216157]
[1749682257782,1.6188,160.19,160.13,0.42648471]
[1749682257984,0.15,160.2,160.16,13.73321047]
[1749682258189,0.15,160.2,160.18,0.14216157]
[1749682259500,0.15,160.2,160.19,58.5250209]
[1749682259680,0.15,160.2,160.19,45.07613357]
[1749682259875,0.15,160.2,160.19,58.80934404]
[1749682260081,0.15,160.2,160.19,45.07613357]
[1749682260280,0.15,160.2,160.19,32.80934404]
[1749682260691,0.15,160.2,160.19,14.15969518]
[1749682260882,0.15,160.2,160.19,0.42648471]
[1749682261091,0.15,160.2,160.19,14.15969518]
[1749682262986,0.15,160.2,160.19,0.14216157]
[1749682263779,0.15,160.2,160.17,18.64964886]
[1749682264600,0.15,160.2,160.18,0.14216157]
[1749682266504,0.15,160.2,160.19,19.07613357]
[1749682266708,0.15,160.2,160.19,32.80934404]
[1749682267404,0.15,160.2,160.19,0.42648471]
[1749682267584,0.15,160.2,160.19,14.15969518]
[1749682269088,0.15,160.2,160.19,58.80934404]
[1749682274316,0.15,160.2,160.19,45.07613357]
[1749682274513,0.15,160.2,160.19,58.80934404]
[1749682276600,0.15,160.2,160.19,45.07613357]
[1749682276797,0.15,160.2,160.19,58.80934404]
[1749682277687,0.15,160.2,160.19,45.07613357]
[1749682277886,0.15,160.2,160.19,58.80934404]
[1749682281913,0.15,160.2,160.19,32.80934404]
[1749682282118,0.15,160.2,160.19,34.41454404]
[1749682286419,6.4617,160.3,160.24,0.42648471]
[1749682286791,13.73321047,160.28,160.24,0.42648471]
[1749682287320,13.73321047,160.29,160.26,0.14216157]
[1749682288026,6.4617,160.3,160.26,0.14216157]
[1749682288204,13.73321047,160.29,160.26,0.14216157]
[1749682288518,20.19491047,160.3,160.26,0.42648471]
[1749682288725,20.19491047,160.3,160.26,14.15969518]
[1749682289303,6.4617,160.3,160.26,14.15969518]
[1749682291204,6.4617,160.3,160.24,45.07613357]
[1749682291509,13.73321047,160.29,160.26,0.28432314]
[1749682291703,20.19491047,160.3,160.26,0.28432314]
[1749682292211,6.4617,160.3,160.26,0.28432314]
[1749682292822,13.73321047,160.27,160.2,18.64964886]
[1749682293031,13.73321047,160.26,160.22,0.14216157]
[1749682293225,1.5577,160.29,160.19,1.6052]
[1749682293226,13.73321047,160.24,160.19,13.73321047]
[1749682293526,13.73321047,160.22,160.17,18.64964886]
[1749682293727,13.73321047,160.2,160.16,6.24]
[1749682293912,13.73321047,160.2,160.17,19.07613357]
[1749682294230,13.73321047,160.21,160.17,19.07613357]
[1749682295732,13.73321047,160.21,160.17,18.933972]
[1749682297960,15.25441047,160.22,160.19,18.64964886]
[1749682299036,1.5212,160.22,160.19,18.64964886]
[1749682299235,20.14111047,160.23,160.19,18.64964886]
[1749682299418,6.4079,160.23,160.2,0.14216157]
[1749682301221,1.6315,160.26,160.2,0.14216157]
[1749682301421,13.73321047,160.24,160.2,0.14216157]
[1749682302218,13.73321047,160.24,160.17,18.79181043]
[1749682302424,13.73321047,160.24,160.2,13.73321047]
[1749682302646,15.36471047,160.26,160.21,32.5250209]
[1749682303025,15.36471047,160.26,160.23,18.64964886]
[1749682303343,13.73321047,160.25,160.23,18.64964886]
[1749682303538,13.73321047,160.25,160.21,18.933972]
[1749682303750,13.73321047,160.23,160.21,0.14216157]
[1749682304119,13.73321047,160.24,160.21,0.14216157]
[1749682304318,1.6315,160.26,160.21,0.14216157]
[1749682304749,13.73321047,160.25,160.21,0.14216157]
[1749682305343,13.73321047,160.24,160.21,0.14216157]
[1749682308143,1.6315,160.26,160.21,0.14216157]
[1749682308345,13.73321047,160.24,160.21,0.14216157]
[1749682308949,1.6315,160.26,160.21,0.14216157]
[1749682309155,13.73321047,160.24,160.21,0.14216157]
[1749682310255,13.73321047,160.24,160.2,18.64964886]
[1749682310556,13.73321047,160.24,160.19,26.14216157]
[1749682310557,13.73321047,160.21,160.19,26.0]
[1749682311953,13.73321047,160.2,160.15,32.38285933]
[1749682312352,19.92431047,160.22,160.18,0.14216157]
[1749682312533,13.73321047,160.23,160.2,18.64964886]
[1749682312850,13.73321047,160.23,160.14,32.24]
[1749682312851,13.73321047,160.21,160.15,18.79181043]
[1749682313157,13.73321047,160.19,160.15,32.38285933]
[1749682313443,13.73321047,160.24,160.14,32.24]
[1749682313444,13.73321047,160.2,160.17,18.64964886]
[1749682313847,13.73321047,160.18,160.14,0.28432314]
[1749682314055,13.73321047,160.15,160.13,18.79181043]
[1749682314234,13.73321047,160.14,160.1,18.64964886]
[1749682314549,13.73321047,160.14,160.09,13.73321047]
[1749682314550,13.73321047,160.13,160.09,26.0]
[1749682314759,13.73321047,160.16,160.1,26.0]
[1749682314939,13.73321047,160.12,160.1,26.0]
[1749682315427,13.73321047,160.11,160.07,13.73321047]
[1749682315846,13.73321047,160.12,160.07,13.73321047]
[1749682316151,13.73321047,160.11,160.07,18.64964886]
[1749682316649,13.73321047,160.11,160.08,0.14216157]
[1749682316854,13.73321047,160.12,160.08,0.14216157]
[1749682317747,13.73321047,160.16,160.11,32.38285933]
[1749682318053,13.73321047,160.16,160.1,26.14216157]
[1749682318054,6.4673,160.19,160.13,18.64964886]
[1749682318260,20.20051047,160.19,160.14,13.73321047]
[1749682318462,20.20051047,160.19,160.15,18.64964886]
[1749682318656,6.4673,160.19,160.15,32.38285933]
[1749682318840,13.73321047,160.21,160.17,18.64964886]
[1749682319235,6.1206,160.23,160.17,18.64964886]
[1749682319435,13.73321047,160.21,160.17,18.64964886]
[1749682320942,13.73321047,160.21,160.16,0.14216157]
[1749682321145,13.73321047,160.21,160.17,18.64964886]
[1749682321455,13.73321047,160.22,160.17,13.73321047]
[1749682322040,6.1206,160.23,160.17,13.73321047]
[1749682322243,13.73321047,160.22,160.17,13.73321047]
[1749682322444,13.73321047,160.22,160.15,0.42648471]
[1749682322640,6.1206,160.23,160.19,13.87537204]
[1749682322641,19.85381047,160.23,160.19,13.87537204]
[1749682322841,15.28411047,160.24,160.19,13.87537204]
[1749682323041,13.73321047,160.21,160.16,18.64964886]
[1749682323229,1.5509,160.24,160.14,26.0]
[1749682323230,13.73321047,160.17,160.14,26.0]
[1749682323433,13.73321047,160.15,160.12,18.64964886]
[1749682323752,6.4852,160.2,160.08,12.7809]
[1749682323753,13.73321047,160.16,160.09,18.64964886]
[1749682323949,1.5713,160.19,160.09,32.38285933]
[1749682324249,13.73321047,160.14,160.09,32.38285933]
[1749682324455,13.73321047,160.14,160.1,0.14216157]
[1749682324952,13.73321047,160.15,160.1,13.87537204]
[1749682326064,13.73321047,160.13,160.1,0.42648471]
[1749682326356,13.73321047,160.11,160.09,18.64964886]
[1749682326651,13.73321047,160.11,160.06,13.73321047]
[1749682326652,13.73321047,160.1,160.05,1.6351]
[1749682326954,13.73321047,160.08,160.01,1.6351]
[1749682327147,13.73321047,160.08,160.03,13.73321047]
[1749682327460,22.88163406,160.07,160.02,22.88163406]
[1749682327650,22.88163406,160.07,160.05,26.0]
[1749682327847,22.88163406,160.07,160.04,0.14216157]
[1749682328755,22.88163406,160.06,160.02,18.64964886]
[1749682328934,22.88163406,160.07,160.02,67.53128292]
[1749682329347,22.88163406,160.07,160.03,0.14216157]
[1749682329546,22.88163406,160.08,160.03,23.30811877]
[1749682329758,22.88163406,160.09,160.05,18.64964886]
[1749682330060,22.88163406,160.1,160.06,18.79181043]
[1749682330458,22.88163406,160.1,160.06,0.14216157]
[1749682330763,22.88163406,160.1,160.06,18.79181043]
[1749682330962,22.88163406,160.09,160.06,0.14216157]
[1749682331559,27.6171,160.12,160.06,0.14216157]
[1749682331560,22.88163406,160.08,160.06,0.14216157]
[1749682331952,27.6171,160.12,160.06,0.14216157]
[1749682331953,22.88163406,160.09,160.06,0.14216157]
[1749682332768,26.0,160.14,160.07,22.88163406]
[1749682333059,22.88163406,160.12,160.09,18.64964886]
[1749682333964,22.88163406,160.11,160.09,18.64964886]
[1749682335166,22.88163406,160.1,160.06,41.67344449]
[1749682335363,6.4998,160.15,160.06,41.67344449]
[1749682335562,6.4998,160.15,160.08,18.64964886]
[1749682335748,22.88163406,160.13,160.09,0.14216157]
[1749682336640,22.88163406,160.14,160.1,18.64964886]
[1749682336846,22.88163406,160.13,160.1,18.64964886]
[1749682337262,6.4998,160.15,160.1,18.64964886]
[1749682337454,22.88163406,160.12,160.1,18.64964886]
[1749682337971,22.88163406,160.14,160.09,41.67344449]
[1749682338159,22.88163406,160.14,160.1,0.28432314]
[1749682338474,149.1,160.17,160.11,0.14216157]
[1749682338686,6.4389,160.19,160.15,18.64964886]
[1749682338844,22.88163406,160.18,160.15,18.64964886]
[1749682339779,22.88163406,160.17,160.07,26.72]
[1749682339973,22.88163406,160.14,160.11,18.79181043]
[1749682340349,22.88163406,160.14,160.11,0.14216157]
[1749682340557,22.88163406,160.13,160.1,18.64964886]
[1749682340884,6.4389,160.19,160.1,18.64964886]
[1749682341064,22.88163406,160.14,160.1,0.14216157]
[1749682341247,22.88163406,160.16,160.12,18.64964886]
[1749682342279,1.5939,160.2,160.15,22.88163406]
[1749682342485,22.88163406,160.21,160.16,41.53128292]
[1749682342777,22.88163406,160.2,160.16,18.64964886]
[1749682344180,22.88163406,160.2,160.15,23.02379563]
[1749682344350,22.88163406,160.2,160.16,18.64964886]
[1749682346755,22.88163406,160.21,160.17,18.64964886]
[1749682347758,22.88163406,160.22,160.18,18.79181043]
[1749682348063,29.19543406,160.23,160.18,41.67344449]
[1749682348585,22.88163406,160.22,160.18,18.79181043]
[1749682349089,22.88163406,160.19,160.14,18.64964886]
[1749682349252,22.88163406,160.15,160.14,18.64964886]
[1749682349559,22.88163406,160.16,160.14,18.64964886]
[1749682349944,26.7,160.21,160.12,19.07613357]
[1749682350258,22.88163406,160.18,160.14,0.14216157]
[1749682350768,26.7,160.21,160.14,0.14216157]
[1749682350970,22.88163406,160.17,160.14,0.14216157]
[1749682352671,26.7,160.22,160.14,0.14216157]
[1749682352882,22.88163406,160.17,160.14,0.14216157]
[1749682353349,26.7,160.22,160.14,0.14216157]
[1749682353548,22.88163406,160.18,160.14,0.14216157]
[1749682355650,26.7,160.22,160.14,0.14216157]
[1749682355849,22.88163406,160.18,160.13,22.88163406]
[1749682356071,22.88163406,160.18,160.14,18.64964886]
[1749682357656,22.88163406,160.19,160.15,18.64964886]
[1749682359262,22.88163406,160.2,160.16,0.14216157]
[1749682359465,1.5573,160.24,160.19,22.88163406]
[1749682359680,24.43893406,160.24,160.19,22.88163406]
[1749682359979,22.88163406,160.23,160.18,41.53128292]
[1749682360170,22.88163406,160.23,160.19,18.64964886]
[1749682361363,1.5573,160.24,160.18,0.14216157]
[1749682361568,1.5573,160.24,160.2,18.64964886]
[1749682361569,22.88163406,160.24,160.2,18.64964886]
[1749682362276,187.72271099,160.27,160.2,18.64964886]
[1749682362456,22.88163406,160.24,160.2,18.64964886]
[1749682363782,22.88163406,160.23,160.18,23.02379563]
[1749682364658,22.88163406,160.22,160.18,0.14216157]
[1749682365267,22.88163406,160.23,160.19,18.64964886]
[1749682365873,22.88163406,160.25,160.2,41.53128292]
[1749682366388,22.88163406,160.26,160.21,22.88163406]
[1749682366595,22.88163406,160.22,160.18,0.14216157]
[1749682366931,22.88163406,160.21,160.18,0.14216157]
[1749682367967,22.88163406,160.21,160.17,18.64964886]
[1749682368186,22.88163406,160.21,160.16,48.88163406]
[1749682368187,22.88163406,160.18,160.14,18.64964886]